lending/lending_fUSD_20250210
["ID","MTS","AMOUNT","RATE_DAILY","PERIOD"]
[352652087,1739217074573,-500.0,0.00011506,2]
[352652088,1739217074583,-500.0,0.00011506,2]
[352652089,1739217074593,-500.0,0.00011506,2]
[352652090,1739217074603,-500.0,0.00011506,2]
[352652091,1739217074613,-500.0,0.00011506,2]
[352652092,1739217074625,-500.0,0.00011506,2]
[352652093,1739217074635,-500.0,0.00011506,2]
[352652094,1739217074644,-797.43,0.00011506,2]
[352652095,1739217074655,-500.0,0.00011506,2]
[352652096,1739217074664,-503.81,0.00011506,2]
[352652097,1739217074673,-688.07,0.00011506,2]
[352652098,1739217074683,-522.19900892,0.00011506,2]
[352652099,1739217074692,-500.0,0.00011506,2]
[352652100,1739217074702,-1205.84,0.00011506,2]
[352652101,1739217074711,-806.41,0.00011506,2]
[352652102,1739217074721,-500.0,0.00011506,2]
[352652103,1739217074731,-500.0,0.00011506,2]
[352652104,1739217074743,-500.0,0.00011506,2]
[352652105,1739217074753,-500.0,0.00011506,2]
[352652106,1739217074762,-735.56,0.00011506,2]
[352652107,1739217074772,-542.61422892,0.00011506,2]
[352652108,1739217074783,-798.49,0.00011506,2]
[352652109,1739217074792,-847.34,0.00011506,2]
[352652110,1739217074802,-500.0,0.00011506,2]
[352652111,1739217074812,-548.6,0.00011506,2]
[352652112,1739217074821,-671.06,0.00011506,2]
[352652113,1739217074831,-500.0,0.00011506,2]
[352652114,1739217074840,-857.26,0.00011506,2]
[352652115,1739217074850,-805.28,0.00011506,2]
[352652116,1739217074860,-737.36,0.00011506,2]
[352652117,1739217074870,-500.0,0.00011506,2]
[352652118,1739217074880,-500.0,0.00011506,2]
[352652119,1739217074890,-686.24,0.00011506,2]
[352652120,1739217074901,-899.13,0.00011506,2]
[352652121,1739217074911,-752.18,0.00011506,2]
[352652122,1739217074922,-500.0,0.00011506,2]
[352652123,1739217074932,-500.0,0.00011506,2]
[352652124,1739217074942,-500.0,0.00011506,2]
[352652125,1739217074953,-500.0,0.00011506,2]
[352652126,1739217074962,-939.92,0.00011506,2]
[352652127,1739217074972,-817.55,0.00011506,2]
[352652128,1739217074983,-993.53,0.00011506,2]
[352652129,1739217074993,-500.0,0.00011506,2]
[352652130,1739217075003,-425.04541636,0.00011506,2]
[352652131,1739217075013,-903.04,0.00011506,2]
[352652132,1739217075023,-1409.06,0.00011506,2]
[352652133,1739217075033,-646.34,0.00011506,2]
[352652134,1739217075043,-813.76,0.00011506,2]
[352652135,1739217075053,-525.71,0.00011506,2]
[352652136,1739217075064,-216.04979806,0.00011506,2]
[352652137,1739217075075,-835.08,0.00011506,2]
[352652138,1739217075085,-500.0,0.00011506,2]
[352652140,1739217075095,-446.23158396,0.00011506,2]
[352652142,1739217075105,-500.0,0.00011506,2]
[352652144,1739217075115,-927.03,0.00011506,2]
[352652146,1739217075124,-1414.15,0.00011506,2]
[352652147,1739217075134,-974.35,0.00011506,2]
[352652150,1739217075145,-500.0,0.00011506,2]
[352652152,1739217075154,-500.0,0.00011506,2]
[352652153,1739217075164,-1339.11,0.00011506,2]
[352652155,1739217075174,-1394.54,0.00011506,2]
[352652157,1739217075184,-1459.18,0.00011506,2]
[352652159,1739217075193,-500.0,0.00011506,2]
[352652161,1739217075203,-500.0,0.00011506,2]
[352652163,1739217075212,-1307.0,0.00011506,2]
[352652165,1739217075222,-713.9,0.00011506,2]
[352652167,1739217075231,-669.6,0.00011506,2]
[352652169,1739217075241,-500.0,0.00011506,2]
[352652171,1739217075251,-908.17,0.00011506,2]
[352652173,1739217075260,-792.5,0.00011506,2]
[352652175,1739217075270,-709.69,0.00011506,2]
[352652177,1739217075282,-587.91742986,0.00011506,2]
[352652179,1739217075292,-500.0,0.00011506,2]
[352652181,1739217075302,-618.61,0.00011506,2]
[352652183,1739217075312,-861.34,0.00011506,2]
[352652185,1739217075321,-1380.24,0.00011506,2]
[352652187,1739217075331,-500.0,0.00011506,2]
[352652189,1739217075341,-968.54,0.00011506,2]
[352652191,1739217075350,-2373.67,0.00011506,2]
[352652193,1739217075360,-500.0,0.00011506,2]
[352652195,1739217075370,-500.0,0.00011506,2]
[352652197,1739217075379,-3706.07,0.00011506,2]
[352652199,1739217075389,-715.18,0.00011506,2]
[352652201,1739217075398,-812.26,0.00011506,2]
[352652203,1739217075408,-500.0,0.00011506,2]
[352652205,1739217075418,-571.93,0.00011506,2]
[352652207,1739217075429,-503.36,0.00011506,2]
[352652209,1739217075439,-2795.86,0.00011506,2]
[352652211,1739217075448,-1463.82,0.00011506,2]
[352652213,1739217075458,-500.0,0.00011506,2]
[352652215,1739217075467,-500.0,0.00011506,2]
[352652217,1739217075477,-1115.84,0.00011506,2]
[352652219,1739217075487,-500.0,0.00011506,2]
[352652221,1739217075497,-769.96,0.00011506,2]
[352652223,1739217075506,-748.1,0.00011506,2]
[352652225,1739217075516,-500.0,0.00011506,2]
[352652227,1739217075526,-500.0,0.00011506,2]
[352652229,1739217075536,-1954.18,0.00011506,2]
[352652231,1739217075545,-3523.07,0.00011506,2]
[352652233,1739217075559,-832.11,0.00011506,2]
[352652235,1739217075569,-718.12,0.00011506,2]
[352652237,1739217075579,-834.26,0.00011506,2]
[352652239,1739217075588,-1677.1,0.00011506,2]
[352652241,1739217075598,-1508.82,0.00011506,2]
[352652243,1739217075608,-2173.12,0.00011506,2]
[352652245,1739217075618,-500.0,0.00011506,2]
[352652261,1739217075767,-637.11,0.00011506,2]
[352652263,1739217075778,-500.0,0.00011506,2]
[352652265,1739217075789,-500.0,0.00011506,2]
[352652267,1739217075798,-1398.39,0.00011506,2]
[352652269,1739217075808,-500.0,0.00011506,2]
[352652271,1739217075818,-1398.24,0.00011506,2]
[352652273,1739217075828,-1741.14,0.00011506,2]
[352652276,1739217075838,-500.0,0.00011506,2]
[352652277,1739217075847,-1494.55,0.00011506,2]
[352652279,1739217075857,-587.05,0.00011506,2]
[352652281,1739217075866,-500.0,0.00011506,2]
[352652283,1739217075875,-500.0,0.00011506,2]
[352652285,1739217075885,-624.81,0.00011506,2]
[352652287,1739217075895,-1199.22,0.00011506,2]
[352652289,1739217075905,-1979.93,0.00011506,2]
[352652291,1739217075915,-802.65,0.00011506,2]
[352652293,1739217075924,-1405.04,0.00011506,2]
[352652295,1739217075935,-2187.78,0.00011506,2]
[352652297,1739217075944,-1056.67,0.00011506,2]
[352652299,1739217075954,-2701.47,0.00011506,2]
[352652302,1739217075964,-595.63,0.00011506,2]
[352652304,1739217075973,-500.0,0.00011506,2]
[352652305,1739217075985,-930.08,0.00011506,2]
[352652306,1739217075994,-1147.5,0.00011506,2]
[352652307,1739217076004,-964.23,0.00011506,2]
[352652308,1739217076013,-704.54,0.00011506,2]
[352652309,1739217076022,-699.04,0.00011506,2]
[352652310,1739217076031,-963.91,0.00011506,2]
[352652311,1739217076041,-562.5,0.00011506,2]
[352652312,1739217076051,-1797.41,0.00011506,2]
[352652313,1739217076060,-500.0,0.00011506,2]
[352652314,1739217076069,-2947.91,0.00011506,2]
[352652315,1739217076078,-1804.58,0.00011506,2]
[352652317,1739217076087,-1036.2,0.00011506,2]
[352652319,1739217076097,-500.0,0.00011506,2]
[352652321,1739217076106,-1449.23,0.00011506,2]
[352652323,1739217076116,-1222.64,0.00011506,2]
[352652325,1739217076126,-742.77,0.00011506,2]
[352652327,1739217076135,-2002.97,0.00011506,2]
[352652329,1739217076144,-500.0,0.00011506,2]
[352652331,1739217076153,-500.0,0.00011506,2]
[352652333,1739217076163,-796.24,0.00011506,2]
[352652335,1739217076172,-500.0,0.00011506,2]
[352652337,1739217076181,-645.83,0.00011506,2]
[352652339,1739217076190,-970.47,0.00011506,2]
[352652341,1739217076199,-500.0,0.00011506,2]
[352652343,1739217076209,-500.0,0.00011506,2]
[352652345,1739217076218,-625.0,0.00011506,2]
[352652347,1739217076227,-500.0,0.00011506,2]
[352652349,1739217076237,-500.0,0.00011506,2]
[352652351,1739217076246,-716.69,0.00011506,2]
[352652353,1739217076255,-1648.9,0.00011506,2]
[352652355,1739217076265,-500.0,0.00011506,2]
[352652357,1739217076275,-1668.82,0.00011506,2]
[352652359,1739217076284,-1844.01,0.00011506,2]
[352652361,1739217076294,-1966.76,0.00011506,2]
[352652363,1739217076304,-500.0,0.00011506,2]
[352652364,1739217076313,-500.32,0.00011506,2]
[352652366,1739217076323,-543.51850277,0.00011506,2]
[352652368,1739217076332,-1124.71,0.00011506,2]
[352652371,1739217076343,-706.93,0.00011506,2]
[352652372,1739217076353,-500.0,0.00011506,2]
[352652374,1739217076362,-2457.08,0.00011506,2]
[352652377,1739217076373,-500.0,0.00011506,2]
[352652378,1739217076382,-1009.57,0.00011506,2]
[352652381,1739217076392,-500.0,0.00011506,2]
[352652383,1739217076402,-2032.53,0.00011506,2]
[352652384,1739217076411,-1156.44,0.00011506,2]
[352652387,1739217076422,-934.8,0.00011506,2]
[352652389,1739217076433,-2081.61,0.00011506,2]
[352652391,1739217076443,-583.33,0.00011506,2]
[352652393,1739217076453,-683.87,0.00011506,2]
[352652395,1739217076462,-810.76,0.00011506,2]
[352652397,1739217076473,-1603.74,0.00011506,2]
[352652399,1739217076483,-1979.23,0.00011506,2]
[352652400,1739217076494,-520.83,0.00011506,2]
[352652403,1739217076505,-3155.5,0.00011506,2]
[352652405,1739217076515,-2265.86,0.00011506,2]
[352652406,1739217076528,-1747.24,0.00011506,2]
[352652408,1739217076540,-2237.83,0.00011506,2]
[352652411,1739217076553,-1675.96,0.00011506,2]
[352652413,1739217076563,-500.0,0.00011506,2]
[352652414,1739217076573,-500.0,0.00011506,2]
[352652416,1739217076582,-1819.33,0.00011506,2]
[352652418,1739217076593,-541.66,0.00011506,2]
[352652420,1739217076603,-530.6,0.00011506,2]
[352652422,1739217076613,-1574.7,0.00011506,2]
[352652425,1739217076623,-837.21,0.00011506,2]
[352652427,1739217076635,-1491.31,0.00011506,2]
[352652428,1739217076646,-500.0,0.00011506,2]
[352652431,1739217076656,-1019.21,0.00011506,2]
[352652433,1739217076666,-2726.72,0.00011506,2]
[352652435,1739217076675,-1880.79,0.00011506,2]
[352652436,1739217076685,-517.16,0.00011506,2]
[352652439,1739217076695,-1527.87,0.00011506,2]
[352652441,1739217076705,-2139.45,0.00011506,2]
[352652443,1739217076715,-500.0,0.00011506,2]
[352652445,1739217076725,-4291.63,0.00011506,2]
[352652447,1739217076734,-500.0,0.00011506,2]
[352652449,1739217076745,-1061.69,0.00011506,2]
[352652451,1739217076754,-860.76,0.00011506,2]
[352652453,1739217076765,-500.0,0.00011506,2]
[352652455,1739217076774,-2344.73,0.00011506,2]
[352652457,1739217076784,-500.0,0.00011506,2]
[352652459,1739217076794,-1443.4,0.00011506,2]
[352652461,1739217076804,-500.0,0.00011506,2]
[352652463,1739217076813,-500.0,0.00011506,2]
[352652465,1739217076824,-3176.66,0.00011506,2]
[352652467,1739217076833,-4387.49,0.00011506,2]
[352652469,1739217076843,-8593.09,0.00011506,2]
[352652471,1739217076853,-2245.56,0.00011506,2]
[352652473,1739217076863,-3099.9,0.00011506,2]
[352652475,1739217076873,-500.0,0.00011506,2]
[352652476,1739217076882,-1243.47,0.00011506,2]
[352652478,1739217076892,-500.0,0.00011506,2]
[352652480,1739217076902,-1144.1,0.00011506,2]
[352652482,1739217076912,-500.0,0.00011506,2]
[352652484,1739217076922,-7758.75,0.00011506,2]
[352652487,1739217076932,-1954.77,0.00011506,2]
[352652489,1739217076943,-500.0,0.00011506,2]
[352652491,1739217076952,-500.0,0.00011506,2]
[352652493,1739217076962,-500.0,0.00011506,2]
[352652495,1739217076970,-2839.44,0.00011506,2]
[352652496,1739217076979,-500.0,0.00011506,2]
[352652498,1739217076989,-505.81,0.00011506,2]
[352652500,1739217076999,-2675.13,0.00011506,2]
[352652502,1739217077008,-631.34,0.00011506,2]
[352652504,1739217077018,-2178.42,0.00011506,2]
[352652506,1739217077029,-500.0,0.00011506,2]
[352652509,1739217077040,-500.0,0.00011506,2]
[352652511,1739217077050,-1372.0,0.00011506,2]
[352652513,1739217077060,-819.49,0.00011506,2]
[352652515,1739217077069,-500.0,0.00011506,2]
[352652517,1739217077079,-151.0,0.00011506,2]
[352652519,1739217077089,-645.83,0.00011506,2]
[352652521,1739217077098,-500.0,0.00011506,2]
[352652523,1739217077108,-3308.63,0.00011506,2]
[352652525,1739217077117,-1788.99,0.00011506,2]
[352652527,1739217077127,-500.0,0.00011506,2]
[352652529,1739217077136,-500.0,0.00011506,2]
[352652531,1739217077146,-543.83,0.00011506,2]
[352652533,1739217077155,-500.0,0.00011506,2]
[352652535,1739217077165,-1162.59,0.00011506,2]
[352652537,1739217077174,-1086.68,0.00011506,2]
[352652539,1739217077183,-151.0,0.00011506,2]
[352652541,1739217077193,-500.0,0.00011506,2]
[352652543,1739217077202,-500.0,0.00011506,2]
[352652545,1739217077212,-500.0,0.00011506,2]
[352652547,1739217077221,-1804.05,0.00011506,2]
[352652548,1739217077230,-5188.0,0.00011506,2]
[352652551,1739217077249,-2392.85,0.00011506,2]
[352652554,1739217077261,-2313.42,0.00011506,2]
[352652556,1739217077271,-749.16,0.00011506,2]
[352652558,1739217077282,-500.0,0.00011506,2]
[352652560,1739217077292,-500.0,0.00011506,2]
[352652562,1739217077302,-2419.09,0.00011506,2]
[352652564,1739217077312,-500.0,0.00011506,2]
[352652566,1739217077323,-1632.19,0.00011506,2]
[352652568,1739217077332,-766.68,0.00011506,2]
[352652570,1739217077342,-500.0,0.00011506,2]
[352652572,1739217077352,-2781.55,0.00011506,2]
[352652574,1739217077362,-599.54,0.00011506,2]
[352652576,1739217077372,-3815.56,0.00011506,2]
[352652578,1739217077381,-702.71,0.00011506,2]
[352652580,1739217077391,-899.39,0.00011506,2]
[352652582,1739217077401,-1221.97,0.00011506,2]
[352652584,1739217077411,-500.0,0.00011506,2]
[352652586,1739217077420,-609.96,0.00011506,2]
[352652588,1739217077430,-3066.98,0.00011506,2]
[352652590,1739217077439,-1855.22,0.00011506,2]
[352652592,1739217077450,-568.31,0.00011506,2]
[352652594,1739217077459,-500.0,0.00011506,2]
[352652596,1739217077469,-500.0,0.00011506,2]
[352652598,1739217077479,-1154.02,0.00011506,2]
[352652600,1739217077488,-500.0,0.00011506,2]
[352652602,1739217077498,-621.93,0.00011506,2]
[352652604,1739217077508,-500.0,0.00011506,2]
[352652606,1739217077518,-1663.55,0.00011506,2]
[352652608,1739217077528,-1470.96,0.00011506,2]
[352652610,1739217077538,-1448.93,0.00011506,2]
[352652612,1739217077549,-1691.99,0.00011506,2]
[352652614,1739217077562,-673.88,0.00011506,2]
[352652616,1739217077572,-3129.14,0.00011506,2]
[352652617,1739217077582,-2320.87,0.00011506,2]
[352652619,1739217077591,-500.0,0.00011506,2]
[352652621,1739217077602,-995.88,0.00011506,2]
[352652623,1739217077612,-500.0,0.00011506,2]
[352652624,1739217077622,-2618.51,0.00011506,2]
[352652625,1739217077633,-2818.9,0.00011506,2]
[352652626,1739217077643,-993.55,0.00011506,2]
[352652627,1739217077654,-2748.46,0.00011506,2]
[352652628,1739217077663,-500.0,0.00011506,2]
[352652629,1739217077673,-500.0,0.00011506,2]
[352652630,1739217077682,-652.35,0.00011506,2]
[352652631,1739217077691,-500.0,0.00011506,2]
[352652632,1739217077700,-1579.61,0.00011506,2]
[352652633,1739217077710,-314.375,0.00011506,2]
[352652634,1739217077719,-500.0,0.00011506,2]
[352652635,1739217077728,-2898.79,0.00011506,2]
[352652636,1739217077737,-712.02,0.00011506,2]
[352652637,1739217077747,-3025.96,0.00011506,2]
[352652638,1739217077757,-848.72,0.00011506,2]
[352652639,1739217077766,-750.4,0.00011506,2]
[352652640,1739217077777,-608.49,0.00011506,2]
[352652641,1739217077787,-500.0,0.00011506,2]
[352652642,1739217077797,-1361.68,0.00011506,2]
[352652643,1739217077807,-1503.79,0.00011506,2]
[352652644,1739217077817,-500.0,0.00011506,2]
[352652645,1739217077826,-1199.24,0.00011506,2]
[352652646,1739217077836,-500.0,0.00011506,2]
[352652647,1739217077846,-997.0,0.00011533,2]
[352652649,1739217077856,-997.0,0.00011561,2]
[352652650,1739217077866,-500.0,0.00011582,2]
[352652652,1739217077875,-997.0,0.00011588,2]
[352652654,1739217077886,-1003.9304641,0.00011616,2]
[352652655,1739217077896,-161.383737,0.00011643,2]
[352652656,1739217077905,-161.383737,0.00011643,2]
[352652657,1739217077915,-641.621339,0.00011643,2]
[352652658,1739217077924,-156.026098,0.00011643,2]
[352652659,1739217077934,-563.348585,0.00011643,2]
[352652660,1739217077944,-158.157164,0.00011643,2]
[352652661,1739217077954,-158.157164,0.00011643,2]
[352652662,1739217077963,-500.0,0.00011643,2]
[352652663,1739217077973,-158.157164,0.00011643,2]
[352652664,1739217077982,-500.0,0.00011643,2]
[352652665,1739217077992,-500.0,0.00011643,2]
[352652666,1739217078002,-393.69287053,0.00011643,2]
[352652668,1739217078013,-287.08451564,0.00011643,2]
[352652670,1739217078022,-500.0,0.00011643,2]
[352652672,1739217078036,-500.0,0.00011643,2]
[352652675,1739217078048,-544.04111429,0.00011643,2]
[352652677,1739217078058,-500.0,0.00011643,2]
[352652679,1739217078068,-500.0,0.00011643,2]
[352652681,1739217078078,-500.0,0.00011643,2]
[352652683,1739217078088,-500.0,0.00011643,2]
[352652684,1739217078098,-500.0,0.00011643,2]
[352652686,1739217078108,-390.20388324,0.00011643,2]
[352652688,1739217078118,-500.0,0.00011643,2]
[352652690,1739217078128,-500.0,0.00011643,2]
[352652692,1739217078137,-541.12,0.00011643,2]
[352652695,1739217078147,-597.05,0.00011643,2]
[352652696,1739217078158,-158.157164,0.00011643,2]
[352652697,1739217078168,-500.0,0.00011643,2]
[352652698,1739217078178,-500.0,0.00011643,2]
[352652699,1739217078187,-500.0,0.00011643,2]
[352652700,1739217078197,-500.0,0.00011643,2]
[352652701,1739217078206,-500.0,0.00011643,2]
[352652702,1739217078216,-500.0,0.00011643,2]
[352652703,1739217078225,-500.0,0.00011643,2]
[352652704,1739217078235,-627.53,0.00011643,2]
[352652705,1739217078245,-500.0,0.00011643,2]
[352652706,1739217078254,-502.57,0.00011643,2]
[352652707,1739217078263,-1200.0,0.00011643,2]
[352652708,1739217078273,-500.0,0.00011643,2]
[352652709,1739217078284,-500.0,0.00011643,2]
[352652710,1739217078294,-500.0,0.00011643,2]
[352652711,1739217078304,-531.44,0.00011643,2]
[352652712,1739217078314,-558.91318624,0.00011643,2]
[352652713,1739217078323,-500.0,0.00011643,2]
[352652714,1739217078333,-810.48,0.00011643,2]
[352652715,1739217078342,-500.0,0.00011643,2]
[352652716,1739217078352,-500.0,0.00011643,2]
[352652717,1739217078362,-500.0,0.00011643,2]
[352652735,1739217078523,-500.0,0.00011643,2]
[352652738,1739217078555,-500.0,0.00011643,2]
[352652740,1739217078565,-506.68870161,0.00011643,2]
[352652742,1739217078576,-500.0,0.00011643,2]
[352652744,1739217078586,-512.43,0.00011643,2]
[352652746,1739217078598,-500.0,0.00011643,2]
[352652748,1739217078607,-500.0,0.00011643,2]
[352652749,1739217078618,-609.09,0.00011643,2]
[352652751,1739217078629,-500.0,0.00011643,2]
[352652753,1739217078639,-500.0,0.00011643,2]
[352652756,1739217078649,-500.0,0.00011643,2]
[352652757,1739217078659,-745.2,0.00011643,2]
[352652759,1739217078668,-500.0,0.00011643,2]
[352652761,1739217078678,-500.0,0.00011643,2]
[352652763,1739217078688,-820.08,0.00011643,2]
[352652765,1739217078697,-500.0,0.00011643,2]
[352652768,1739217078707,-500.0,0.00011643,2]
[352652769,1739217078717,-500.0,0.00011643,2]
[352652771,1739217078727,-1862.78,0.00011643,2]
[352652773,1739217078736,-500.0,0.00011643,2]
[352652775,1739217078747,-991.22,0.00011643,2]
[352652777,1739217078756,-158.157165,0.00011643,2]
[352652779,1739217078766,-500.0,0.00011643,2]
[352652781,1739217078778,-500.0,0.00011643,2]
[352652782,1739217078788,-951.4,0.00011643,2]
[352652784,1739217078799,-874.12,0.00011643,2]
[352652786,1739217078810,-591.78,0.00011643,2]
[352652789,1739217078821,-1448.37,0.00011643,2]
[352652791,1739217078831,-572.87,0.00011643,2]
[352652792,1739217078841,-1014.74,0.00011643,2]
[352652794,1739217078851,-500.0,0.00011643,2]
[352652797,1739217078861,-1242.07,0.00011643,2]
[352652799,1739217078872,-500.0,0.00011643,2]
[352652800,1739217078883,-589.74,0.00011643,2]
[352652803,1739217078900,-500.0,0.00011643,2]
[352652805,1739217078910,-500.0,0.00011643,2]
[352652807,1739217078920,-500.0,0.00011643,2]
[352652809,1739217078931,-500.0,0.00011643,2]
[352652811,1739217078941,-549.56,0.00011643,2]
[352652813,1739217078950,-682.19,0.00011643,2]
[352652815,1739217078960,-500.0,0.00011643,2]
[352652817,1739217078970,-549.68092249,0.00011643,2]
[352652819,1739217078980,-628.64,0.00011643,2]
[352652821,1739217078989,-500.0,0.00011643,2]
[352652822,1739217078999,-500.0,0.00011643,2]
[352652825,1739217079010,-500.0,0.00011643,2]
[352652826,1739217079020,-910.68,0.00011643,2]
[352652828,1739217079032,-718.31,0.00011643,2]
[352652831,1739217079042,-1094.62,0.00011643,2]
[352652833,1739217079052,-500.0,0.00011643,2]
[352652834,1739217079061,-758.66,0.00011643,2]
[352652837,1739217079071,-500.0,0.00011643,2]
[352652838,1739217079081,-846.94,0.00011643,2]
[352652841,1739217079091,-923.59,0.00011643,2]
[352652842,1739217079100,-500.0,0.00011643,2]
[352652844,1739217079110,-500.0,0.00011643,2]
[352652846,1739217079119,-942.9,0.00011643,2]
[352652848,1739217079128,-813.51,0.00011643,2]
[352652850,1739217079138,-500.0,0.00011643,2]
[352652852,1739217079147,-500.0,0.00011643,2]
[352652854,1739217079158,-500.0,0.00011643,2]
[352652857,1739217079168,-1170.73,0.00011643,2]
[352652859,1739217079177,-1443.11,0.00011643,2]
[352652860,1739217079187,-874.82,0.00011643,2]
[352652862,1739217079197,-500.0,0.00011643,2]
[352652865,1739217079207,-500.0,0.00011643,2]
[352652867,1739217079216,-500.0,0.00011643,2]
[352652869,1739217079226,-500.0,0.00011643,2]
[352652870,1739217079235,-828.38,0.00011643,2]
[352652871,1739217079245,-997.5,0.00011643,2]
[352652872,1739217079255,-1336.04,0.00011643,2]
[352652873,1739217079264,-1416.68,0.00011643,2]
[352652874,1739217079274,-1370.33,0.00011643,2]
[352652875,1739217079284,-626.36,0.00011643,2]
[352652876,1739217079294,-1315.41,0.00011643,2]
[352652877,1739217079304,-500.0,0.00011643,2]
[352652878,1739217079314,-500.0,0.00011643,2]
[352652880,1739217079324,-1211.22,0.00011643,2]
[352652882,1739217079334,-500.0,0.00011643,2]
[352652884,1739217079343,-505.87,0.00011643,2]
[352652886,1739217079353,-151.0,0.00011643,2]
[352652888,1739217079362,-500.0,0.00011643,2]
[352652890,1739217079372,-500.0,0.00011643,2]
[352652892,1739217079382,-726.19,0.00011643,2]
[352652894,1739217079391,-500.0,0.00011643,2]
[352652896,1739217079400,-806.7,0.00011643,2]
[352652898,1739217079409,-873.16,0.00011643,2]
[352652900,1739217079418,-500.0,0.00011643,2]
[352652902,1739217079428,-837.9,0.00011643,2]
[352652904,1739217079437,-831.3,0.00011643,2]
[352652906,1739217079447,-1700.07,0.00011643,2]
[352652908,1739217079457,-500.0,0.00011643,2]
[352652909,1739217079467,-526.93,0.00011643,2]
[352652912,1739217079476,-908.11,0.00011643,2]
[352652913,1739217079485,-500.0,0.00011643,2]
[352652915,1739217079494,-684.98,0.00011643,2]
[352652917,1739217079504,-710.89,0.00011643,2]
[352652919,1739217079513,-500.0,0.00011643,2]
[352652922,1739217079524,-500.0,0.00011643,2]
[352652924,1739217079534,-719.92,0.00011643,2]
[352652926,1739217079545,-869.99,0.00011643,2]
[352652928,1739217079558,-500.0,0.00011643,2]
[352652930,1739217079567,-551.41,0.00011643,2]
[352652932,1739217079577,-1051.27,0.00011643,2]
[352652934,1739217079586,-150.578915,0.00011643,2]
[352652935,1739217079595,-500.0,0.00011643,2]
[352652937,1739217079604,-500.0,0.00011643,2]
[352652939,1739217079614,-500.0,0.00011643,2]
[352652941,1739217079623,-500.0,0.00011643,2]
[352652943,1739217079636,-540.44,0.00011643,2]
[352652945,1739217079647,-1096.75,0.00011643,2]
[352652948,1739217079656,-884.26,0.00011643,2]
[352652950,1739217079667,-708.33,0.00011643,2]
[352652952,1739217079676,-765.79,0.00011643,2]
[352652954,1739217079685,-500.0,0.00011643,2]
[352652956,1739217079694,-500.0,0.00011643,2]
[352652958,1739217079704,-500.0,0.00011643,2]
[352652960,1739217079714,-334.41059147,0.00011643,2]
[352652962,1739217079723,-888.99,0.00011643,2]
[352652964,1739217079733,-500.0,0.00011643,2]
[352652966,1739217079742,-823.69,0.00011643,2]
[352652967,1739217079751,-500.0,0.00011643,2]
[352652969,1739217079760,-500.0,0.00011643,2]
[352652971,1739217079770,-500.0,0.00011643,2]
[352652973,1739217079780,-1307.26,0.00011643,2]
[352652975,1739217079789,-644.78,0.00011643,2]
[352652977,1739217079799,-648.7,0.00011643,2]
[352652980,1739217079809,-878.48,0.00011643,2]
[352652982,1739217079819,-1365.19,0.00011643,2]
[352652984,1739217079829,-500.0,0.00011643,2]
[352652986,1739217079838,-160.116118,0.00011643,2]